fUST/lending_fUST_20250607
["ID","MTS","AMOUNT","RATE_DAILY","PERIOD"]
[364843278,1749270647101,-500.0,0.00020548,2]
[364843279,1749270647111,-184.67770995,0.00020548,2]
[364843280,1749270647121,-500.0,0.00020548,2]
[364843281,1749270647131,-500.0,0.00020548,2]
[364843282,1749270647141,-440.0,0.00020818,2]
[364843283,1749270647150,-619.88,0.00020821,2]
[364843284,1749270647160,-440.0,0.00020821,2]
[364843285,1749270647169,-440.0,0.00020821,2]
[364843286,1749270647180,-1023.01,0.00020821,2]
[364843287,1749270647189,-618.12,0.00020821,2]
[364843288,1749270647199,-918.99,0.00020821,2]
[364843289,1749270647208,-487.9008143,0.00020934,4]
[364843290,1749270647218,-440.0,0.00020963,2]
[364843291,1749270647227,-1210.34,0.00020963,2]
[364843292,1749270647237,-440.0,0.00020963,2]
[364843293,1749270647340,-440.0,0.00020963,2]
[364843294,1749270647351,-440.0,0.00020963,2]
[364843295,1749270647362,-440.0,0.00020963,2]
[364843296,1749270647372,-440.0,0.00020963,2]
[364843297,1749270647383,-472.53,0.00020963,2]
[364843298,1749270647394,-440.0,0.00020963,2]
[364843299,1749270647404,-321.73281395,0.00020965,2]
[364843300,1749270647418,-118.26718605,0.00020965,2]
[364843301,1749270647428,-440.0,0.00020965,2]
[364843302,1749270647438,-440.0,0.00020965,2]
[364843303,1749270647448,-440.0,0.00020965,2]
[364843304,1749270647458,-440.0,0.00020965,2]
[364843305,1749270647468,-1149.2,0.00020965,2]
[364843306,1749270647478,-440.0,0.00020965,2]
[364843307,1749270647488,-440.0,0.00020966,2]
[364843308,1749270647497,-440.0,0.00020966,2]
[364843309,1749270647507,-440.0,0.00020966,2]
[364843310,1749270647517,-558.51,0.00020966,2]
[364843311,1749270647526,-1121.59,0.00020966,2]
[364843312,1749270647536,-151.0,0.00020967,2]
[364843313,1749270647545,-4976.11523033,0.00021,2]
[364843314,1749270647557,-763.81453344,0.00021,2]
[364843315,1749270647568,-319.54686517,0.00021,2]
[364843316,1749270647580,-33972.43890678,0.00021,2]
[364843317,1749270647590,-420.0,0.00021048,2]
[364843318,1749270647601,-329.09292648,0.00021092,2]
[364843319,1749270647610,-619.88,0.00021095,2]
[364843320,1749270647620,-360.0,0.00021095,2]
[364843321,1749270647630,-1023.01,0.00021095,2]
[364843322,1749270647640,-618.12,0.00021095,2]
[364843323,1749270647649,-918.99,0.00021095,2]
[364843324,1749270647659,-487.9008143,0.00021107,4]
[364843325,1749270647668,-500.0,0.00021148,2]
[364843326,1749270647678,-2376.20377252,0.00021231,2]
[364843327,1749270647688,-440.0,0.00021237,2]
[364843328,1749270647698,-1210.34,0.00021237,2]
[364843329,1749270647709,-440.0,0.00021237,2]
[364843330,1749270647719,-440.0,0.00021237,2]
[364843331,1749270647729,-440.0,0.00021237,2]
[364843332,1749270647739,-440.0,0.00021237,2]
[364843333,1749270647749,-380.0,0.00021237,2]
[364843334,1749270647759,-440.0,0.00021237,2]
[364843335,1749270647769,-440.0,0.00021239,2]
[364843336,1749270647778,-440.0,0.00021239,2]
[364843337,1749270647788,-440.0,0.00021239,2]
[364843338,1749270647798,-440.0,0.00021239,2]
[364843339,1749270647808,-440.0,0.00021239,2]
[364843340,1749270647824,-1149.2,0.00021239,2]
[364843341,1749270647835,-440.0,0.00021239,2]
[364843342,1749270647846,-440.0,0.0002124,2]
[364843343,1749270647856,-440.0,0.0002124,2]
[364843344,1749270647866,-440.0,0.0002124,2]
[364843345,1749270647876,-558.51,0.0002124,2]
[364843346,1749270647886,-1121.59,0.0002124,2]
[364843347,1749270647896,-487.9008143,0.00021279,5]
[364843348,1749270647906,-382.90269601,0.00021366,2]
[364843349,1749270647916,-160.0,0.00021366,2]
[364843350,1749270647925,-500.0,0.00021366,2]
[364843351,1749270647935,-151.0,0.00021367,2]
[364843352,1749270647946,-231.885442,0.00021367,2]
[364843353,1749270647956,-231.885442,0.00021367,2]
[364843354,1749270647966,-619.88,0.00021369,2]
[364843355,1749270647975,-1023.01,0.00021369,2]
[364843356,1749270647985,-618.12,0.00021369,2]
[364843357,1749270647995,-918.99,0.00021369,2]
[364843358,1749270648004,-151.0,0.00021388,2]
[364843359,1749270648014,-151.0,0.00021388,2]
[364843360,1749270648023,-694.82802914,0.00021388,2]
[364843361,1749270648033,-500.0,0.00021388,2]
[364843362,1749270648043,-500.0,0.00021388,2]
[364843363,1749270648052,-500.0,0.00021388,2]
[364843364,1749270648061,-500.0,0.00021388,2]
[364843365,1749270648071,-500.0,0.00021388,2]
[364843366,1749270648080,-500.0,0.00021388,2]
[364843367,1749270648089,-500.0,0.00021388,2]
[364843368,1749270648099,-500.0,0.00021388,2]
[364843369,1749270648108,-500.0,0.00021388,2]
[364843370,1749270648118,-500.0,0.00021388,2]
[364843371,1749270648128,-207.4,0.00021388,2]
[364843372,1749270648138,-5000.0,0.00021388,2]
[364843373,1749270648147,-500.0,0.00021388,2]
[364843374,1749270648158,-500.0,0.00021388,2]
[364843375,1749270648168,-500.0,0.00021388,2]
[364843376,1749270648178,-500.0,0.00021388,2]
[364843377,1749270648188,-500.0,0.00021388,2]
[364843378,1749270648198,-500.0,0.00021388,2]
[364843379,1749270648207,-500.0,0.00021388,2]
[364843380,1749270648217,-500.0,0.00021388,2]
[364843381,1749270648227,-500.0,0.00021388,2]
[364843382,1749270648237,-500.0,0.00021388,2]
[364843383,1749270648246,-500.0,0.00021388,2]
[364843384,1749270648256,-500.0,0.00021388,2]
[364843385,1749270648266,-500.0,0.00021388,2]
[364843386,1749270648275,-500.0,0.00021388,2]
[364843387,1749270648285,-500.0,0.00021388,2]
[364843388,1749270648295,-500.0,0.00021388,2]
[364843389,1749270648305,-500.0,0.00021388,2]
[364843390,1749270648314,-500.0,0.00021388,2]
[364843391,1749270648328,-500.0,0.00021388,2]
[364843392,1749270648338,-515.51670508,0.00021388,2]
[364843393,1749270648347,-3016.68,0.00021399,2]
[364843394,1749270648357,-487.9008143,0.00021452,5]
[364843395,1749270648367,-440.0,0.00021511,2]
[364843396,1749270648376,-1210.34,0.00021511,2]
[364843397,1749270648386,-350.0,0.00021511,2]
[364843398,1749270648397,-440.0,0.00021511,2]
[364843399,1749270648407,-517.08,0.00021511,2]
[364843400,1749270648417,-440.0,0.00021511,2]
[364843401,1749270648426,-440.0,0.00021511,2]
[364843402,1749270648436,-440.0,0.00021513,2]
[364843403,1749270648446,-277.58893313,0.00021513,2]
[364843404,1749270648461,-505.76,0.00021513,2]
[364843405,1749270648470,-440.0,0.00021513,2]
[364843406,1749270648480,-440.0,0.00021513,2]
[364843407,1749270648490,-1149.2,0.00021513,2]
[364843408,1749270648499,-440.0,0.00021513,2]
[364843409,1749270648510,-440.0,0.00021514,2]
[364843410,1749270648520,-440.0,0.00021514,2]
[364843411,1749270648530,-440.0,0.00021514,2]
[364843412,1749270648540,-558.51,0.00021514,2]
[364843413,1749270648551,-1121.59,0.00021514,2]
[364843414,1749270648560,-500.0,0.00021522,2]
[364843415,1749270648570,-503.43669377,0.00021591,2]
[364843416,1749270648579,-166.75075652,0.00021591,2]
[364843417,1749270648589,-614.14349328,0.00021591,2]
[364843418,1749270648599,-600.0,0.00021591,2]
[364843419,1749270648609,-500.0,0.00021591,2]
[364843420,1749270648619,-500.0,0.00021591,2]
[364843421,1749270648628,-502.03299049,0.00021591,2]
[364843422,1749270648638,-500.81329484,0.00021591,2]
[364843423,1749270648647,-505.67113354,0.00021591,2]
[364843424,1749270648657,-487.9008143,0.00021624,5]
[364843425,1749270648666,-619.88,0.00021643,2]
[364843426,1749270648676,-1023.01,0.00021643,2]
[364843427,1749270648685,-618.12,0.00021643,2]
[364843428,1749270648695,-918.99,0.00021643,2]
[364843429,1749270648705,-150.0,0.000217,2]
[364843430,1749270648714,-300.0,0.00021743,2]
[364843431,1749270648724,-157.37807497,0.0002177,2]
[364843432,1749270648734,-501.80536653,0.0002177,2]
[364843433,1749270648743,-500.0,0.0002177,2]
[364843434,1749270648752,-501.15204642,0.0002177,2]
[364843435,1749270648762,-500.0,0.0002177,2]
[364843436,1749270648771,-500.0,0.0002177,2]
[364843437,1749270648780,-500.0,0.0002177,2]
[364843438,1749270648790,-440.0,0.00021785,2]
[364843439,1749270648799,-1210.34,0.00021785,2]
[364843440,1749270648809,-440.0,0.00021785,2]
[364843441,1749270648819,-440.0,0.00021785,2]
[364843442,1749270648828,-440.0,0.00021787,2]
[364843443,1749270648838,-440.0,0.00021787,2]
[364843444,1749270648847,-440.0,0.00021787,2]
[364843445,1749270648856,-1149.2,0.00021787,2]
[364843446,1749270648866,-440.0,0.00021787,2]
[364843447,1749270648876,-440.0,0.00021788,2]
[364843448,1749270648885,-440.0,0.00021788,2]
[364843449,1749270648894,-440.0,0.00021788,2]
[364843450,1749270648904,-558.51,0.00021788,2]
[364843451,1749270648913,-1121.59,0.00021788,2]
[364843452,1749270648923,-487.9008143,0.00021797,6]
[364843453,1749270648932,-500.0,0.00021811,2]
[364843454,1749270648941,-500.0,0.00021811,2]
[364843455,1749270648951,-501.83157651,0.00021811,2]
[364843456,1749270648960,-557.57565396,0.00021811,2]
[364843457,1749270648969,-500.83877974,0.00021811,2]
[364843458,1749270648978,-500.0,0.00021811,2]
[364843459,1749270648987,-503.67447001,0.00021811,2]
[364843460,1749270648997,-501.95420674,0.00021811,2]
[364843461,1749270649007,-176.34637321,0.00021811,2]
[364843462,1749270649021,-339.089963,0.00021811,2]
[364843463,1749270649032,-415.59078295,0.00021811,2]
[364843464,1749270649044,-84.40921705,0.00021811,2]
[364843465,1749270649054,-500.0,0.00021811,2]
[364843466,1749270649150,-253.09571559,0.00021811,2]
[364843467,1749270649163,-377.32606329,0.00021811,2]
[364843468,1749270649173,-519.10064633,0.00021811,2]
[364843469,1749270649183,-501.22722534,0.00021811,2]
[364843470,1749270649193,-500.0,0.00021811,2]
[364843471,1749270649203,-500.0,0.00021811,2]
[364843472,1749270649213,-500.0,0.00021811,2]
[364843473,1749270649224,-500.0,0.00021811,2]
[364843474,1749270649234,-500.0,0.00021811,2]
[364843475,1749270649243,-151.220922,0.00021865,2]
[364843476,1749270649253,-151.0,0.00021865,2]
[364843477,1749270649263,-781.16,0.000219,2]
[364843478,1749270649272,-1773.4,0.000219,2]
[364843479,1749270649282,-2376.20377252,0.000219,2]
[364843480,1749270649292,-201.84046446,0.00021917,2]
[364843481,1749270649302,-400.0,0.00021917,2]
[364843482,1749270649312,-400.0,0.00021917,2]
[364843483,1749270649325,-619.88,0.00021917,2]
[364843484,1749270649335,-1023.01,0.00021917,2]
[364843485,1749270649345,-618.12,0.00021917,2]
[364843486,1749270649355,-918.99,0.00021917,2]
[364843487,1749270649366,-500.0,0.00021918,2]
[364843488,1749270649376,-398.06380131,0.00021918,2]
[364843489,1749270649385,-5000.0,0.00021936,2]
[364843490,1749270649395,-487.9008143,0.00021969,6]
[364843491,1749270649406,-500.0,0.00021973,2]
[364843492,1749270649416,-164.04017,0.00021999,7]
[364843493,1749270649426,-151.0,0.00021999,7]
[364843494,1749270649436,-224.0,0.00022,2]
[364843495,1749270649446,-23370.9964295,0.00022,7]
[364843496,1749270649458,-5940.90303165,0.00022,7]
[364843497,1749270649469,-1334.91073041,0.00022,7]
[364843498,1749270649481,-4438.16830565,0.00022,7]
[364843499,1749270649516,-1361.37444852,0.00018406,2]
[364843500,1749270649527,-490.46702145,0.00018406,2]
[364843501,1749270649538,-1004.13296293,0.00018406,2]
[364843502,1749270649548,-420.0,0.00019322,2]
[364843503,1749270649557,-160.0,0.00020205,2]
[364843504,1749270649566,-3221.9400897,0.00022,7]
[364843505,1749270649578,-46435.08141309,0.00022,7]
[364843506,1749270649587,-151.0,0.00022,7]
[364843507,1749270649597,-231.885442,0.00022,2]
[364843508,1749270649607,-231.885442,0.00022,2]
[364843509,1749270649618,-71914.22676222,0.00022,2]
[364843510,1749270649628,-76245.89784375,0.00022,2]
[364843511,1749270649638,-440.0,0.00022059,2]
[364843512,1749270649647,-1210.34,0.00022059,2]
[364843513,1749270649656,-440.0,0.00022059,2]
[364843514,1749270649666,-440.0,0.00022059,2]
[364843515,1749270649676,-440.0,0.00022061,2]
[364843516,1749270649685,-440.0,0.00022061,2]
[364843517,1749270649695,-1149.2,0.00022061,2]
[364843518,1749270649704,-151.0,0.00022061,7]
[364843519,1749270649714,-440.0,0.00022061,2]
[364843520,1749270649723,-440.0,0.00022062,2]
[364843521,1749270649733,-440.0,0.00022062,2]
[364843522,1749270649742,-440.0,0.00022062,2]
[364843523,1749270649753,-558.51,0.00022062,2]
[364843524,1749270649762,-1121.59,0.00022062,2]
[364843525,1749270649772,-151.0,0.00022063,7]
[364843526,1749270649782,-231.885442,0.00022063,2]
[364843527,1749270649792,-231.885442,0.00022063,2]
[364843528,1749270649801,-1000.0,0.0002207,2]
[364843529,1749270649811,-1200.0,0.00022139,2]
[364843530,1749270649820,-1000.0,0.00022139,2]
[364843531,1749270649830,-487.9008143,0.00022141,6]
[364843532,1749270649839,-619.88,0.00022191,2]
[364843533,1749270649849,-1023.01,0.00022191,2]
[364843534,1749270649859,-618.12,0.00022191,2]
[364843535,1749270649868,-918.99,0.00022191,2]
[364843536,1749270649877,-500.0,0.00022244,2]
[364843537,1749270649887,-43500.33769853,0.000223,2]
[364843538,1749270649899,-3310.95230147,0.000223,2]
[364843539,1749270649908,-151.0,0.000223,5]
[364843540,1749270649917,-487.9008143,0.00022314,7]
[364843541,1749270649927,-510.87607662,0.00022318,2]
[364843542,1749270649937,-1000.0,0.00022318,2]
[364843543,1749270649946,-440.0,0.00022333,2]
[364843544,1749270649956,-983.19482129,0.00022333,2]
[364843545,1749270649968,-227.14517871,0.00022333,2]
[364843546,1749270649978,-440.0,0.00022333,2]
[364843547,1749270649988,-440.0,0.00022333,2]
[364843548,1749270649998,-440.0,0.00022335,2]
[364843549,1749270650008,-440.0,0.00022335,2]
[364843550,1749270650018,-1149.2,0.00022335,2]
[364843551,1749270650027,-440.0,0.00022335,2]
[364843552,1749270650037,-440.0,0.00022336,2]
[364843553,1749270650046,-123.48671581,0.00022336,2]
[364843554,1749270650058,-316.51328419,0.00022336,2]
[364843555,1749270650067,-440.0,0.00022336,2]
[364843556,1749270650077,-558.51,0.00022336,2]
[364843557,1749270650088,-1070.57767,0.00022336,2]
[364843558,1749270650239,-430.0,0.00019311,2]
[364843559,1749270650249,-188.04279203,0.00019322,2]
[364843560,1749270650259,-152.704268,0.00019596,2]
[364843561,1749270650269,-51.01233,0.00022336,2]
[364843562,1749270650279,-502.76572592,0.00022359,2]
[364843563,1749270650289,-502.15635294,0.00022359,2]
[364843564,1749270650299,-104.83873478,0.00022359,2]
[364843565,1749270650311,-895.16126522,0.00022359,2]
[364843566,1749270650322,-502.33405918,0.00022359,2]
[364843567,1749270650333,-529.45282351,0.00022359,2]
[364843568,1749270650342,-1000.0,0.00022359,2]
[364843569,1749270650352,-1000.0,0.00022359,2]
[364843570,1749270650362,-1000.0,0.00022359,2]
[364843571,1749270650371,-501.76487737,0.00022359,2]
[364843572,1749270650381,-405.0,0.00022372,2]
[364843573,1749270650391,-619.88,0.00022465,2]
[364843574,1749270650402,-1023.01,0.00022465,2]
[364843575,1749270650413,-618.12,0.00022465,2]
[364843576,1749270650423,-918.99,0.00022465,2]
[364843577,1749270650433,-5000.0,0.00022484,2]
[364843578,1749270650442,-2000.0,0.000225,2]
[364843579,1749270650451,-440.0,0.00022607,2]
[364843580,1749270650461,-1210.34,0.00022607,2]
[364843581,1749270650470,-440.0,0.00022607,2]
[364843582,1749270650479,-440.0,0.00022607,2]
[364843583,1749270650489,-440.0,0.00022609,2]
[364843584,1749270650499,-1149.2,0.00022609,2]
[364843585,1749270650508,-228.369402,0.00022609,7]
[364843586,1749270650517,-440.0,0.0002261,2]
[364843587,1749270650526,-440.0,0.0002261,2]
[364843588,1749270650535,-440.0,0.0002261,2]
[364843589,1749270650545,-558.51,0.0002261,2]
[364843590,1749270650555,-1121.59,0.0002261,2]
[364843591,1749270650564,-1519.80097479,0.00022618,2]
[364843592,1749270650574,-161.15103542,0.0002263,2]
[364843593,1749270650583,-1800.0,0.00022687,2]
[364843594,1749270650592,-1500.0,0.00022687,2]
[364843595,1749270650602,-151.0,0.000227,6]
[364843596,1749270650612,-619.88,0.00022739,2]
[364843597,1749270650622,-1023.01,0.00022739,2]
[364843598,1749270650632,-618.12,0.00022739,2]
[364843599,1749270650642,-918.99,0.00022739,2]
[364843600,1749270650651,-215.0738,0.00022757,2]
[364843601,1749270650661,-1210.34,0.00022881,2]
[364843602,1749270650670,-440.0,0.00022881,2]
[364843603,1749270650679,-526.9186764,0.00022881,2]
[364843604,1749270650689,-578.04,0.00022883,2]
[364843605,1749270650698,-1149.2,0.00022883,2]
[364843606,1749270650707,-440.0,0.00022884,2]
[364843607,1749270650810,-440.0,0.00022884,2]
[364843608,1749270650820,-440.0,0.00022884,2]
[364843609,1749270650830,-558.51,0.00022884,2]
[364843610,1749270650839,-1121.59,0.00022884,2]
[364843611,1749270650850,-507.07474969,0.00022907,2]
[364843612,1749270650859,-1500.0,0.00022907,2]
[364843613,1749270650869,-500.0,0.00022907,2]
[364843614,1749270650882,-161.15103542,0.00022932,2]
[364843615,1749270650892,-151.0,0.00022942,7]
[364843616,1749270650902,-231.885442,0.00022942,2]
[364843617,1749270650911,-231.885442,0.00022942,2]
[364843618,1749270650921,-33799.74885605,0.00023,2]
[364843619,1749270650931,-84742.0,0.00023,7]
[364843620,1749270650940,-2000.0,0.00023,2]
[364843621,1749270650950,-151.0,0.00023,7]
[364843622,1749270650960,-151.0,0.00023,7]
[364843623,1749270650970,-231.885442,0.00023,2]
[364843624,1749270650980,-231.885442,0.00023,2]
[364843625,1749270650989,-619.88,0.00023013,2]
[364843626,1749270650999,-1023.01,0.00023013,2]
[364843627,1749270651009,-618.12,0.00023013,2]
[364843628,1749270651019,-918.99,0.00023013,2]
[364843629,1749270651028,-5000.0,0.00023032,2]
[364843630,1749270651038,-706.0501,0.00023088,3]
[364843631,1749270651048,-781.16,0.000231,7]
[364843632,1749270651057,-1773.4,0.000231,7]
[364843633,1749270651067,-1210.34,0.00023155,2]
[364843634,1749270651076,-440.0,0.00023155,2]
[364843635,1749270651086,-1149.2,0.00023157,2]
[364843636,1749270651095,-440.0,0.00023158,2]
[364843637,1749270651105,-440.0,0.00023158,2]
[364843638,1749270651114,-440.0,0.00023158,2]
[364843639,1749270651123,-558.51,0.00023158,2]
[364843640,1749270651133,-1121.59,0.00023158,2]
[364843641,1749270651142,-638.0,0.000232,2]
[364843642,1749270651151,-161.15103542,0.00023233,2]
[364843643,1749270651161,-2400.0,0.00023235,2]
[364843644,1749270651171,-2000.0,0.00023235,2]
[364843645,1749270651180,-4229.00924845,0.0002324,2]
[364843646,1749270651189,-6033.37,0.00023243,2]
[364843647,1749270651199,-619.88,0.00023287,2]
[364843648,1749270651210,-1023.01,0.00023287,2]
[364843649,1749270651220,-618.12,0.00023287,2]
[364843650,1749270651230,-918.99,0.00023287,2]
[364843651,1749270651241,-151.0,0.00023299,7]
[364843652,1749270651250,-151.0,0.00023299,7]
[364843653,1749270651260,-153.090491,0.00023299,7]
[364843654,1749270651269,-151.0,0.00023299,7]
[364843655,1749270651279,-231.885442,0.00023299,2]
[364843656,1749270651289,-231.885442,0.00023299,2]
[364843657,1749270651299,-151.0,0.000233,7]
[364843658,1749270651308,-151.0,0.000233,7]
[364843659,1749270651318,-151.0,0.000233,7]
[364843660,1749270651331,-151.0,0.000233,7]
[364843661,1749270651340,-46811.29,0.000233,2]
[364843662,1749270651350,-191.621144,0.000233,7]
[364843663,1749270651360,-231.885442,0.000233,2]
[364843664,1749270651370,-231.885442,0.000233,2]
[364843665,1749270651380,-297272.04761405,0.000233,7]
[364843670,1749270772354,167.0,0.00016658,3]
[364843787,1749271339116,173.918433,0.00013699,2]
[364843844,1749271626131,-300.0,0.00018495,2]
[364843845,1749271626152,-300.0,0.00018496,2]
[364843846,1749271626173,-300.0,0.00018496,2]
[364843847,1749271626330,-276.0,0.00018496,2]
[364843848,1749271626355,-1200.0,0.00018496,2]
[364843849,1749271626379,-9329.25176125,0.00018497,2]
[364843850,1749271627096,-5739.24968878,0.00018497,2]
[364843936,1749271837776,-235.58577243,0.00018396,2]
[364843938,1749271837787,-948.5920308,0.00018482,2]
[364843940,1749271837798,-300.0,0.00018496,2]
[364843942,1749271837808,-1200.0,0.00018496,2]
[364843944,1749271837818,-3449.29502408,0.00018497,2]
[364843947,1749271837829,-4444.68042514,0.00018497,2]
[364843949,1749271837841,-755.8897517,0.00018497,2]
[364843954,1749271837883,-1181.63334905,0.00018497,2]
[364843956,1749271837893,-1330.6300335,0.00018552,2]
[364843958,1749271837903,-433.2578762,0.00018556,2]
[364843960,1749271837912,-248.9058569,0.00018697,2]
[364843963,1749271837923,-150.0,0.000189,2]
[364843965,1749271837933,-440.0,0.00019178,2]
[364843967,1749271837942,-440.0,0.00019178,2]
[364843969,1749271837953,-440.0,0.00019178,2]
[364843972,1749271837971,-390.0,0.00019311,2]
[364843974,1749271837985,-188.0150724,0.00019311,2]
[364843977,1749271837999,-251.9849276,0.00019311,2]
[364843979,1749271838010,-440.0,0.00019311,2]
[364843999,1749271838182,-458.20125836,0.00019311,2]
[364844001,1749271838193,-440.0,0.00019311,2]
[364844003,1749271838202,-155.79797872,0.00019311,2]
[364844244,1749271840085,-264.20202128,0.00019311,2]
[364844246,1749271840094,-362.00354848,0.00019311,2]
[364844249,1749271840107,-66.54230307,0.00019311,2]
[364844251,1749271840116,-420.0,0.00019311,2]
[364844253,1749271840126,-401.7945903,0.00019321,2]
[364844255,1749271840135,-431.4009782,0.00019321,2]
[364844257,1749271840145,-440.0,0.00019321,2]
[364844259,1749271840154,-430.0,0.00019321,2]
[364844261,1749271840164,-430.0,0.00019321,2]
[364844263,1749271840174,-440.0,0.00019452,2]
[364844265,1749271840184,-440.0,0.00019452,2]
[364844267,1749271840193,-440.0,0.00019452,2]
[364844269,1749271840203,-173.35803676,0.00019494,2]
[364844271,1749271840213,-491.08,0.00019585,2]
[364844273,1749271840223,-440.0,0.00019592,2]
[364844276,1749271840232,-440.0,0.00019592,2]
[364844278,1749271840242,-458.87,0.00019592,2]
[364844280,1749271840252,-440.0,0.00019592,2]
[364844282,1749271840261,-513.46,0.00019592,2]
[364844284,1749271840271,-440.0,0.00019592,2]
[364844286,1749271840280,-440.0,0.00019592,2]
[364844288,1749271840290,-153.26097305,0.00019592,2]
[364844290,1749271840300,-500.0,0.00019592,2]
[364844292,1749271840310,-370.34473048,0.00019592,2]
[364844294,1749271840320,-500.0,0.00019592,2]
[364844296,1749271840330,-500.0,0.00019592,2]
[364844298,1749271840339,-495.76688288,0.00019592,2]
[364844300,1749271840349,-156.01657455,0.00019592,2]
[364844303,1749271840363,-434.14744433,0.00019592,2]
[364844305,1749271840373,-440.89050515,0.00019593,2]
[364844307,1749271840382,-507.11614506,0.00019593,2]
[364844309,1749271840392,-440.0,0.00019593,2]
[364844310,1749271840402,-440.0,0.00019593,2]
[364844312,1749271840411,-430.0,0.00019593,2]
[364844314,1749271840421,-440.0,0.00019593,2]
[364844316,1749271840430,-499.57,0.00019593,2]
[364844318,1749271840439,-440.0,0.00019593,2]
[364844320,1749271840449,-430.0,0.00019593,2]
[364844322,1749271840458,-440.0,0.00019594,2]
[364844324,1749271840468,-440.0,0.00019594,2]
[364844326,1749271840478,-440.0,0.00019594,2]
[364844329,1749271840488,-492.73,0.00019594,2]
[364844330,1749271840497,-440.0,0.00019594,2]
[364844332,1749271840507,-500.0,0.00019595,2]
[364844334,1749271840517,-495.05559834,0.00019595,2]
[364844336,1749271840526,-440.0,0.00019726,2]
[364844339,1749271840536,-440.0,0.00019726,2]
[364844340,1749271840546,-440.0,0.00019726,2]
[364844342,1749271840556,-368.59182853,0.00019764,2]
[364844345,1749271840565,-440.0,0.00019866,2]
[364844346,1749271840575,-440.0,0.00019866,2]
[364844349,1749271840586,-513.46,0.00019866,2]
[364844351,1749271840597,-440.0,0.00019866,2]
[364844353,1749271840606,-440.0,0.00019866,2]
[364844355,1749271840616,-440.0,0.00019867,2]
[364844357,1749271840625,-499.57,0.00019867,2]
[364844359,1749271840635,-440.0,0.00019867,2]
[364844361,1749271840645,-440.0,0.00019868,2]
[364844363,1749271840655,-406.17281545,0.00019868,2]
[364844364,1749271840667,-33.82718455,0.00019868,2]
[364844366,1749271840677,-223.53917905,0.00019868,2]
[364844843,1749271846032,-440.0,0.00019178,2]
[364844845,1749271846042,-269.16309492,0.00019452,2]
[364844856,1749271846140,-170.83690508,0.00019452,2]
[364844858,1749271846150,-455.67172874,0.00019593,2]
[364844860,1749271846160,-440.0,0.00019726,2]
[364844862,1749271846170,-216.46082095,0.00019868,2]
[364844864,1749271846180,-492.73,0.00019868,2]
[364844867,1749271846189,-174.59295891,0.00019868,2]
[364844869,1749271846201,-265.40704109,0.00019868,2]
[364844871,1749271846212,-350.12481428,0.000199,2]
[364844873,1749271846221,-151.0,0.0002,2]
[364844875,1749271846232,-440.0,0.0002,2]
[364844877,1749271846241,-440.0,0.0002,2]
[364844879,1749271846251,-440.0,0.0002,2]
[364844881,1749271846260,-440.0,0.0002,2]
[364844883,1749271846270,-2940.94,0.00020002,2]
[364844885,1749271846280,-188.40317852,0.00020041,2]
[364844887,1749271846290,-500.0,0.00020052,2]
[364844889,1749271846299,-151.0,0.00020052,2]
[364844891,1749271846310,-350.12481412,0.00020072,2]